bitfinex/quotes_BTCUSD_20230905
["timestamp","ask_amount","ask_price","bid_price","bid_amount"]
[1693948045336,0.04,25738.0,25737.0,5.36325805]
[1693948045544,0.04,25738.0,25737.0,5.36337805]
[1693948045750,0.04,25738.0,25737.0,5.36889805]
[1693948045972,0.04,25738.0,25737.0,5.36925805]
[1693948046169,0.04,25738.0,25737.0,5.36937805]
[1693948046286,0.04,25738.0,25737.0,5.36817805]
[1693948046491,0.04,25738.0,25737.0,5.36601805]
[1693948046740,0.04,25738.0,25737.0,5.36781805]
[1693948046963,0.04,25738.0,25737.0,5.36793805]
[1693948047133,0.04,25738.0,25737.0,5.36829805]
[1693948047340,0.04,25738.0,25737.0,5.36841805]
[1693948047539,0.04,25738.0,25737.0,5.36781805]
[1693948047738,0.04,25738.0,25737.0,5.36745805]
[1693948047963,0.04,25738.0,25737.0,5.36313805]
[1693948048384,0.04,25738.0,25737.0,5.36217805]
[1693948048592,0.04,25738.0,25737.0,5.36901805]
[1693948048806,0.04,25738.0,25737.0,5.36997805]
[1693948049008,0.04,25738.0,25737.0,5.36949805]
[1693948049206,0.04,25738.0,25737.0,5.48149805]
[1693948049408,0.04,25738.0,25737.0,5.49457805]
[1693948049748,0.04,25738.0,25737.0,5.49325805]
[1693948049955,0.04,25738.0,25737.0,5.49265805]
[1693948050167,0.04,25738.0,25737.0,5.49205805]
[1693948050345,0.04,25738.0,25737.0,5.48977805]
[1693948050550,0.04,25738.0,25737.0,5.48953805]
[1693948050760,0.04,25738.0,25737.0,5.48749805]
[1693948050964,0.04,25738.0,25737.0,5.46249805]
[1693948051179,0.04,25738.0,25737.0,5.43761805]
[1693948051342,0.04,25738.0,25737.0,5.48605805]
[1693948051760,0.04,25738.0,25737.0,5.46057805]
[1693948051962,0.04,25738.0,25737.0,5.45613805]
[1693948052141,0.04,25738.0,25737.0,5.48365805]
[1693948052526,0.04,25738.0,25737.0,5.48401805]
[1693948052751,0.04,25738.0,25737.0,5.48449805]
[1693948052950,0.04,25738.0,25737.0,5.48569805]
[1693948053154,0.04,25738.0,25737.0,5.48269805]
[1693948053359,0.04,25738.0,25737.0,5.48125805]
[1693948053560,0.04,25738.0,25737.0,5.48209805]
[1693948053802,0.04,25738.0,25737.0,5.48245805]
[1693948053980,0.04,25738.0,25737.0,5.48257805]
[1693948054184,0.04,25738.0,25737.0,5.48269805]
[1693948054672,0.04,25738.0,25737.0,5.48365805]
[1693948054873,0.04,25738.0,25737.0,5.48377805]
[1693948056674,0.04,25738.0,25737.0,5.48413805]
[1693948057017,0.04,25738.0,25737.0,5.48857805]
[1693948057141,0.04,25738.0,25737.0,5.48845805]
[1693948057344,0.04,25738.0,25737.0,5.48869805]
[1693948057545,0.04,25738.0,25737.0,5.48857805]
[1693948057791,0.04,25738.0,25737.0,5.48869805]
[1693948058115,0.04,25738.0,25737.0,5.61663805]
[1693948058399,0.04,25738.0,25737.0,5.61771805]
[1693948058601,0.04,25738.0,25737.0,5.61747805]
[1693948058837,0.04,25738.0,25737.0,5.60919805]
[1693948059044,0.04,25738.0,25737.0,5.60751805]
[1693948059227,0.04,25738.0,25737.0,5.61123805]
[1693948059524,0.04,25738.0,25737.0,5.61111805]
[1693948059730,0.04,25738.0,25737.0,5.61159805]
[1693948059940,0.04,25738.0,25737.0,5.60535805]
[1693948060167,0.04,25738.0,25737.0,5.60391805]
[1693948060571,0.04,25738.0,25737.0,5.60331805]
[1693948060797,0.04,25738.0,25737.0,5.60319805]
[1693948061005,0.04,25738.0,25737.0,5.69855941]
[1693948061202,0.04,25738.0,25737.0,5.69843941]
[1693948061336,0.04,25738.0,25737.0,5.70911941]
[1693948061545,0.04,25738.0,25737.0,5.70263941]
[1693948061742,0.04,25738.0,25737.0,5.70251941]
[1693948062048,0.04,25738.0,25737.0,5.70479941]
[1693948062183,0.04,25738.0,25737.0,5.70503941]
[1693948062533,0.04,25738.0,25737.0,5.70527941]
[1693948062733,0.04,25738.0,25737.0,5.70407941]
[1693948062932,0.04,25738.0,25737.0,5.84376145]
[1693948063133,0.04,25738.0,25737.0,5.84388145]
[1693948063286,0.04,25738.0,25737.0,5.84412145]
[1693948063488,0.04,25738.0,25737.0,6.02154913]
[1693948063756,0.04,25738.0,25737.0,6.02262913]
[1693948063972,0.04,25738.0,25737.0,6.04518981]
[1693948064160,0.04,25738.0,25737.0,6.07030981]
[1693948064397,0.04,25738.0,25737.0,6.04794981]
[1693948064605,0.04,25738.0,25737.0,6.07090981]
[1693948064805,0.04,25738.0,25737.0,6.04614981]
[1693948064982,0.04,25738.0,25737.0,6.07126981]
[1693948065184,0.04,25738.0,25737.0,6.07150981]
[1693948065541,0.04,25738.0,25737.0,6.07174981]
[1693948065753,0.04,25738.0,25737.0,6.06706981]
[1693948065960,0.04,25738.0,25737.0,6.06898981]
[1693948066186,0.04,25738.0,25737.0,6.06922981]
[1693948066350,0.04,25738.0,25737.0,6.07042981]
[1693948066745,0.04,25738.0,25737.0,6.22944373]
[1693948066971,0.04,25738.0,25737.0,6.21480373]
[1693948067155,0.04,25738.0,25737.0,6.07966981]
[1693948067524,0.04,25738.0,25737.0,6.07906981]
[1693948067860,0.04,25738.0,25737.0,6.21408324]
[1693948068072,0.04,25738.0,25737.0,6.21468324]
[1693948068277,0.04,25738.0,25737.0,6.21671539]
[1693948068681,0.04,25738.0,25737.0,6.07834981]
[1693948068856,0.04,25738.0,25737.0,6.1988767]
[1693948069033,0.04,25738.0,25737.0,6.0047567]
[1693948069234,0.04,25738.0,25737.0,6.0049967]
[1693948069439,0.04,25738.0,25737.0,6.1992367]
[1693948069638,0.04,25738.0,25737.0,6.1973167]
[1693948069839,0.04,25738.0,25737.0,6.1997167]
[1693948070062,0.04,25738.0,25737.0,6.1995967]
[1693948070260,0.04,25738.0,25737.0,6.2000767]
[1693948070565,0.04,25738.0,25737.0,6.2001967]
[1693948071196,0.04,25738.0,25737.0,6.01451398]
[1693948071399,0.04,25738.0,25737.0,6.01463398]
[1693948071538,0.04,25738.0,25737.0,6.01499398]
[1693948071743,0.04,25738.0,25737.0,6.2006767]
[1693948071967,0.04,25738.0,25737.0,6.01343398]
[1693948072172,0.04,25738.0,25737.0,6.01235398]
[1693948072319,0.04,25738.0,25737.0,6.01259398]
[1693948072727,0.04,25738.0,25737.0,6.01427398]
[1693948072921,0.04,25738.0,25737.0,6.01367398]
[1693948073172,0.04,25738.0,25737.0,6.01559398]
[1693948073383,0.04,25738.0,25737.0,6.01439398]
[1693948073613,0.04,25738.0,25737.0,6.01427398]
[1693948073983,0.04,25738.0,25737.0,6.01355398]
[1693948074255,0.04,25738.0,25737.0,6.01595398]
[1693948074407,0.04,25738.0,25737.0,6.01619398]
[1693948074738,0.04,25738.0,25737.0,6.01655398]
[1693948075149,0.04,25738.0,25737.0,6.02087398]
[1693948075347,0.04,25738.0,25737.0,6.03179398]
[1693948075555,0.04,25738.0,25737.0,6.02255398]
[1693948075755,0.04,25738.0,25737.0,6.02003398]
[1693948075958,0.04,25738.0,25737.0,6.02159398]
[1693948076159,0.04,25738.0,25737.0,6.2060767]
[1693948076368,0.04,25738.0,25737.0,6.2076367]
[1693948076729,0.04,25738.0,25737.0,6.2077567]
[1693948077129,0.04,25738.0,25737.0,6.02255398]
[1693948077351,0.04,25738.0,25737.0,6.02075398]
[1693948077557,0.04,25738.0,25737.0,6.02243398]
[1693948077774,0.04,25738.0,25737.0,6.02255398]
[1693948078274,0.04,25738.0,25737.0,5.91717398]
[1693948078599,0.04,25738.0,25737.0,6.1047767]
[1693948078803,0.04,25738.0,25737.0,5.91957398]
[1693948079100,0.04,25738.0,25737.0,5.91933398]
[1693948079241,0.04,25738.0,25737.0,5.91945398]
[1693948079447,0.04,25738.0,25737.0,5.91861398]
[1693948079643,0.04,25738.0,25737.0,5.91933398]
[1693948079860,0.04,25738.0,25737.0,5.92101398]
[1693948080329,0.04,25738.0,25737.0,5.92029398]
[1693948080527,0.04,25738.0,25737.0,5.92017398]
[1693948080959,0.04,25738.0,25737.0,5.92005398]
[1693948081165,0.04,25738.0,25737.0,5.92017398]
[1693948081340,0.04,25738.0,25737.0,5.90409398]
[1693948081546,0.04,25738.0,25737.0,5.90085398]
[1693948081755,0.04,25738.0,25737.0,5.90712981]
[1693948082096,0.04,25738.0,25737.0,5.90724981]
[1693948082301,0.04,25738.0,25737.0,5.90760981]
[1693948082506,0.04,25738.0,25737.0,5.91348981]
[1693948082707,0.04,25738.0,25737.0,5.92176981]
[1693948082910,0.04,25738.0,25737.0,5.92872981]
[1693948083132,0.04,25738.0,25737.0,5.92728981]
[1693948083308,0.04,25738.0,25737.0,5.92716981]
[1693948083509,0.04,25738.0,25737.0,5.92236981]
[1693948083861,0.04,25738.0,25737.0,5.92140981]
[1693948084065,0.04,25738.0,25737.0,5.91852981]
[1693948084314,0.04,25738.0,25737.0,5.91612981]
[1693948084615,0.04,25738.0,25737.0,5.91108981]
[1693948084862,0.04,25738.0,25737.0,5.91240981]
[1693948085068,0.04,25738.0,25737.0,5.91312981]
[1693948085267,0.04,25738.0,25737.0,5.91300981]
[1693948085473,0.04,25738.0,25737.0,5.91108981]
[1693948085709,0.04,25738.0,25737.0,5.91084981]
[1693948085947,0.04,25738.0,25737.0,5.91048981]
[1693948086150,0.04,25738.0,25737.0,6.05004338]
[1693948086352,0.04,25738.0,25737.0,5.91096981]
[1693948086525,0.04,25738.0,25737.0,5.90724981]
[1693948086855,0.04,25738.0,25737.0,5.90676981]
[1693948087060,0.04,25738.0,25737.0,5.90988981]
[1693948087268,0.04,25738.0,25737.0,5.90976981]
[1693948087472,0.04,25738.0,25737.0,5.91000981]
[1693948087671,0.04,25738.0,25737.0,5.82988981]
[1693948087874,0.04,25738.0,25737.0,5.82976981]
[1693948088231,0.04,25738.0,25737.0,5.82820981]
[1693948088435,0.04,25738.0,25737.0,5.83000981]
[1693948088637,0.04,25738.0,25737.0,5.83120981]
[1693948088842,0.04,25738.0,25737.0,5.83108981]
[1693948089023,0.04,25738.0,25737.0,5.83012981]
[1693948089223,0.04,25738.0,25737.0,5.83120981]
[1693948089431,0.04,25738.0,25737.0,5.83024981]
[1693948089641,0.04,25738.0,25737.0,5.83120981]
[1693948089842,0.04,25738.0,25737.0,6.06301321]
[1693948090086,0.04,25738.0,25737.0,5.83048981]
[1693948090260,0.04,25738.0,25737.0,6.06169321]
[1693948090461,0.04,25738.0,25737.0,6.06109321]
[1693948090780,0.04,25738.0,25737.0,6.05857321]
[1693948090986,0.04,25738.0,25737.0,6.05881321]
[1693948091189,0.04,25738.0,25737.0,6.05845321]
[1693948091389,0.04,25738.0,25737.0,6.06061321]
[1693948091587,0.04,25738.0,25737.0,6.06889321]
[1693948091754,0.04,25738.0,25737.0,6.07033321]
[1693948091957,0.04,25738.0,25737.0,6.07045321]
[1693948092256,0.04,25738.0,25737.0,6.07093321]
[1693948092460,0.04,25738.0,25737.0,6.06889321]
[1693948092607,0.04,25738.0,25737.0,6.06877321]
[1693948092805,0.04,25738.0,25737.0,6.07141321]
[1693948093095,0.04,25738.0,25737.0,6.07177321]
[1693948093449,0.04,25738.0,25737.0,6.07249321]
[1693948093656,0.04,25738.0,25737.0,6.07237321]
[1693948094179,0.04,25738.0,25737.0,6.07141321]
[1693948094312,0.04,25738.0,25737.0,5.88633049]
[1693948094512,0.04,25738.0,25737.0,5.88057049]
[1693948094717,0.04,25738.0,25737.0,6.0681081]
[1693948094919,0.04,25738.0,25737.0,6.0665481]
[1693948095119,0.04,25738.0,25737.0,6.0663081]
[1693948095323,0.04,25738.0,25737.0,5.88009049]
[1693948095524,0.04,25738.0,25737.0,5.87697049]
[1693948095726,0.04,25738.0,25737.0,5.87649049]
[1693948096196,0.04,25738.0,25737.0,5.87337049]
[1693948096411,0.04,25738.0,25737.0,5.87307049]
[1693948096612,0.04,25738.0,25737.0,5.87241049]
[1693948096823,0.04,25738.0,25737.0,5.87229049]
[1693948096957,0.04,25738.0,25737.0,5.87253049]
[1693948097749,0.04,25738.0,25737.0,5.87397049]
[1693948097930,0.04,25738.0,25737.0,5.87577049]
[1693948098225,0.04,25738.0,25737.0,5.87625049]
[1693948098427,0.04,25738.0,25737.0,5.87661049]
[1693948098656,0.04,25738.0,25737.0,5.87769049]
[1693948098863,0.04,25738.0,25737.0,5.87793049]
[1693948099033,0.04,25738.0,25737.0,5.87817049]
[1693948099239,0.04,25738.0,25737.0,5.87841049]
[1693948099450,0.04,25738.0,25737.0,5.87865049]
[1693948099643,0.04,25738.0,25737.0,5.88153049]
[1693948099889,0.04,25738.0,25737.0,5.88177049]
[1693948100092,0.04,25738.0,25737.0,5.88201049]
[1693948100293,0.04,25738.0,25737.0,5.88225049]
[1693948100494,0.04,25738.0,25737.0,5.88549049]
[1693948100672,0.04,25738.0,25737.0,5.88369049]
[1693948100885,0.04,25738.0,25737.0,5.88561049]
[1693948101105,0.04,25738.0,25737.0,5.88537049]
[1693948101311,0.04,25738.0,25737.0,5.89653049]
[1693948101517,0.04,25738.0,25737.0,5.89329049]
[1693948101719,0.04,25738.0,25737.0,5.89437049]
[1693948101939,0.04,25738.0,25737.0,5.89461049]
[1693948102369,0.04,25738.0,25737.0,5.89473049]
[1693948102570,0.04,25738.0,25737.0,5.89485049]
[1693948102769,0.04,25738.0,25737.0,5.89497049]
[1693948102973,0.04,25738.0,25737.0,5.89485049]
[1693948103125,0.04,25738.0,25737.0,5.89497049]
[1693948103456,0.04,25738.0,25737.0,5.89257049]
[1693948103662,0.04,25738.0,25737.0,5.89293049]
[1693948103867,0.04,25738.0,25737.0,5.89341049]
[1693948104063,0.04,25738.0,25737.0,5.89329049]
[1693948104268,0.04,25738.0,25737.0,5.89317049]
[1693948104628,0.04,25738.0,25737.0,5.89509049]
[1693948104850,0.04,25738.0,25737.0,5.89497049]
[1693948105043,0.04,25738.0,25737.0,5.89455049]
[1693948105272,0.04,25738.0,25737.0,5.89437049]
[1693948105475,0.04,25738.0,25737.0,5.89425049]
[1693948105677,0.04,25738.0,25737.0,5.89413049]
[1693948105831,0.04,25738.0,25737.0,5.89437049]
[1693948106035,0.04,25738.0,25737.0,5.89425049]
[1693948106255,0.04,25738.0,25737.0,5.88969049]
[1693948106576,0.04,25738.0,25737.0,5.88153049]
[1693948106787,0.04,25738.0,25737.0,5.88117049]
[1693948107384,0.04,25738.0,25737.0,5.88993049]
[1693948107567,0.04,25738.0,25737.0,5.88981049]
[1693948107772,0.04,25738.0,25737.0,5.88717049]
[1693948107973,0.04,25738.0,25737.0,5.88729049]
[1693948108169,0.04,25738.0,25737.0,5.88717049]
[1693948108321,0.04,25738.0,25737.0,5.88705049]
[1693948108525,0.04,25738.0,25737.0,5.88813049]
[1693948108730,0.04,25738.0,25737.0,5.89461049]
[1693948108927,0.04,25738.0,25737.0,5.89509049]
[1693948109150,0.04,25738.0,25737.0,5.89305049]
[1693948109362,0.04,25738.0,25737.0,5.89281049]
[1693948109568,0.04,25738.0,25737.0,5.89317049]
[1693948109768,0.04,25738.0,25737.0,5.89161049]
[1693948109970,0.04,25738.0,25737.0,5.89149049]
[1693948110329,0.04,25738.0,25737.0,5.89089049]
[1693948110634,0.04,25738.0,25737.0,5.88909049]
[1693948110812,0.04,25738.0,25737.0,5.88597049]
[1693948110955,0.04,25738.0,25737.0,5.88585049]
[1693948111403,0.00098105,25741.0,25740.0,0.47914602]
[1693948111660,0.11276327,25747.0,25745.0,0.05004602]
[1693948111661,0.0197,25747.0,25745.0,0.05004602]
[1693948111804,0.1538,25746.0,25745.0,0.73669129]
[1693948112018,0.1538,25746.0,25745.0,1.49362228]
[1693948112216,0.0197,25747.0,25746.0,0.43914602]
[1693948112432,0.0197,25747.0,25746.0,2.51296502]
[1693948112809,0.0197,25747.0,25746.0,3.43789166]
[1693948113016,0.0197,25747.0,25746.0,3.44095166]
[1693948113242,0.0197,25747.0,25746.0,3.43933166]
[1693948113450,0.0197,25747.0,25746.0,3.43945166]
[1693948113658,0.0197,25747.0,25746.0,3.46427166]
[1693948113838,0.0197,25747.0,25746.0,3.48729166]
[1693948114038,0.0197,25747.0,25746.0,3.46277166]
[1693948114266,0.0197,25747.0,25746.0,3.46259166]
[1693948114467,0.0197,25747.0,25746.0,3.48747166]
[1693948114643,0.0197,25747.0,25746.0,3.48453166]
[1693948114798,0.0197,25747.0,25746.0,3.48441166]
[1693948114998,0.0197,25747.0,25746.0,3.48513166]
[1693948115209,0.0197,25747.0,25746.0,3.48507166]
[1693948115418,0.0197,25747.0,25746.0,3.48909166]
[1693948115649,0.0197,25747.0,25746.0,3.48903166]
[1693948115847,0.0197,25747.0,25746.0,3.48897166]
[1693948116195,0.0197,25747.0,25746.0,3.48891166]
[1693948116414,0.0197,25747.0,25746.0,3.48477166]
[1693948116617,0.0197,25747.0,25746.0,3.48417166]
[1693948116797,0.0197,25747.0,25746.0,3.48429166]
[1693948117211,0.0197,25747.0,25746.0,3.48411166]
[1693948117532,0.0197,25747.0,25746.0,3.48333166]
[1693948117734,0.0197,25747.0,25746.0,3.48345166]
[1693948117939,0.0197,25747.0,25746.0,3.48363166]
[1693948118155,0.0197,25747.0,25746.0,3.48525166]
[1693948118318,0.0197,25747.0,25746.0,3.48369166]
[1693948118524,0.0197,25747.0,25746.0,3.48363166]
[1693948118733,0.0197,25747.0,25746.0,3.48513166]
[1693948118935,0.0197,25747.0,25746.0,3.87171693]
[1693948119135,0.0197,25747.0,25746.0,3.87189693]
[1693948119331,0.0197,25747.0,25746.0,3.87195693]
[1693948119660,0.0197,25747.0,25746.0,3.87183693]
[1693948119885,0.0197,25747.0,25746.0,3.87159693]
[1693948120067,0.0197,25747.0,25746.0,3.87153693]
[1693948120262,0.0197,25747.0,25746.0,3.87147693]
[1693948120470,0.0197,25747.0,25746.0,3.87237693]
[1693948120694,0.0197,25747.0,25746.0,3.86895693]
[1693948120893,0.0197,25747.0,25746.0,3.86925693]
[1693948121099,0.0197,25747.0,25746.0,3.86913693]
[1693948121235,0.0197,25747.0,25746.0,3.86925693]
[1693948121442,0.0197,25747.0,25746.0,3.86889693]
[1693948121643,0.0197,25747.0,25746.0,3.88185515]
[1693948121843,0.0197,25747.0,25746.0,3.88179515]
[1693948122039,0.0197,25747.0,25746.0,3.88131515]
[1693948122327,0.0197,25747.0,25746.0,3.88221515]
[1693948122496,0.0197,25747.0,25746.0,3.88227515]
[1693948122866,0.0197,25747.0,25746.0,3.91253312]
[1693948123244,0.0197,25747.0,25746.0,3.91247312]
[1693948123749,0.0197,25747.0,25746.0,3.91229312]
[1693948123967,0.0197,25747.0,25746.0,3.91265312]
[1693948124170,0.0197,25747.0,25746.0,3.91259312]
[1693948124343,0.0197,25747.0,25746.0,3.91253312]
[1693948124674,0.0197,25747.0,25746.0,3.91787312]
[1693948124820,0.0197,25747.0,25746.0,3.91805312]
[1693948125182,0.0197,25747.0,25746.0,4.23511312]
[1693948125387,0.0197,25747.0,25746.0,4.13489312]
[1693948125591,0.0197,25747.0,25746.0,4.11881312]
[1693948125793,0.0197,25747.0,25746.0,4.11401312]
[1693948125944,0.0197,25747.0,25746.0,4.06425312]
[1693948126148,0.0197,25747.0,25746.0,4.06149312]
[1693948126499,0.0197,25747.0,25746.0,4.08649312]
[1693948126848,0.0197,25747.0,25746.0,4.08793312]
[1693948127052,0.0197,25747.0,25746.0,4.08505312]
[1693948127381,0.0197,25747.0,25746.0,4.11053312]
[1693948127577,0.0197,25747.0,25746.0,4.11257312]
[1693948127783,0.0197,25747.0,25746.0,4.08805312]
[1693948127948,0.0197,25747.0,25746.0,4.11137312]
[1693948128168,0.0197,25747.0,25746.0,4.11173312]
[1693948128370,0.0197,25747.0,25746.0,4.11161312]
[1693948128667,0.0197,25747.0,25746.0,4.11281312]
[1693948128871,0.0197,25747.0,25746.0,4.11305312]
[1693948129024,0.0197,25747.0,25746.0,4.11329312]
[1693948129204,0.0197,25747.0,25746.0,4.39275312]
[1693948129408,0.00099391,25751.0,25750.0,0.45914602]
[1693948129621,0.00099391,25751.0,25750.0,5.3850834]
[1693948129945,0.0197,25752.0,25751.0,2.09015002]
[1693948130254,0.0197,25752.0,25751.0,2.79679529]
[1693948130386,0.0197,25754.0,25753.0,3.19727102]
[1693948130596,0.0197,25754.0,25753.0,4.40641629]
[1693948130793,0.0197,25754.0,25753.0,4.81747629]
[1693948130997,0.0197,25754.0,25753.0,4.81711629]
[1693948131196,0.0197,25754.0,25753.0,4.80713629]
[1693948131547,0.0197,25754.0,25753.0,4.97785629]
[1693948131675,0.0197,25754.0,25753.0,4.97281629]
[1693948131879,0.0197,25754.0,25753.0,4.97785629]
[1693948132101,0.0197,25754.0,25753.0,4.97833629]
[1693948132301,0.0197,25754.0,25753.0,4.97701629]
[1693948132479,0.0197,25754.0,25753.0,4.97281629]
[1693948132686,0.0197,25754.0,25753.0,4.97725629]
[1693948132887,0.0197,25754.0,25753.0,4.99985629]
[1693948133352,0.0197,25754.0,25753.0,3.90475129]
[1693948133563,0.0197,25754.0,25753.0,3.63619129]
[1693948133974,0.0197,25754.0,25753.0,3.66119129]
[1693948134802,0.0197,25754.0,25753.0,3.66151273]
[1693948135122,0.0197,25754.0,25753.0,3.73423273]
[1693948135321,0.0197,25754.0,25753.0,3.73435273]
[1693948135576,0.0197,25754.0,25753.0,3.73057273]
[1693948135815,0.0197,25754.0,25753.0,3.72931273]
[1693948136119,0.0197,25754.0,25753.0,3.73003273]
[1693948136312,0.0197,25754.0,25753.0,3.73051273]
[1693948136554,0.0197,25754.0,25753.0,3.73081273]
[1693948136748,0.0197,25754.0,25753.0,3.73093273]
[1693948136969,0.0197,25754.0,25753.0,3.73129273]
[1693948137160,0.0197,25754.0,25753.0,3.73171273]
[1693948137366,0.0197,25754.0,25753.0,3.73213273]
[1693948137601,0.0197,25754.0,25753.0,3.73249273]
[1693948137847,0.0197,25754.0,25753.0,3.73315273]
[1693948138051,0.0197,25754.0,25753.0,3.73369273]
[1693948138250,0.0197,25754.0,25753.0,3.73357273]
[1693948138385,0.0197,25754.0,25753.0,3.73417273]
[1693948138763,0.0197,25754.0,25753.0,3.73375273]
[1693948138966,0.0197,25754.0,25753.0,3.85593273]
[1693948139178,0.0197,25754.0,25753.0,3.87045273]
[1693948139387,0.0197,25754.0,25753.0,3.89969273]
[1693948139607,0.0197,25754.0,25753.0,3.90215273]
[1693948139781,0.0197,25754.0,25753.0,3.90185273]
[1693948140013,0.0197,25754.0,25753.0,3.90143273]
[1693948140194,0.0197,25754.0,25753.0,3.90131273]
[1693948140327,0.0197,25754.0,25753.0,3.90647273]
[1693948140533,0.0197,25754.0,25753.0,3.90515273]
[1693948140729,0.0197,25754.0,25753.0,5.02414337]
[1693948140943,0.0197,25754.0,25753.0,5.01834015]
[1693948141144,0.0197,25754.0,25753.0,5.01888015]
[1693948141343,0.0197,25754.0,25753.0,5.02104015]
[1693948141588,0.0197,25754.0,25753.0,5.02056015]
[1693948141979,0.0197,25754.0,25753.0,5.18124015]
[1693948142163,0.0197,25754.0,25753.0,5.18304015]
[1693948142373,0.0197,25754.0,25753.0,5.18472015]
[1693948142571,0.0197,25754.0,25753.0,5.18388015]
[1693948142771,0.0197,25754.0,25753.0,5.18640015]
[1693948143006,0.0197,25754.0,25753.0,5.18508015]
[1693948143151,0.0197,25754.0,25753.0,5.17920015]
[1693948143570,0.0197,25754.0,25753.0,5.18028015]
[1693948143771,0.0197,25754.0,25753.0,5.13980015]
[1693948143971,0.0197,25754.0,25753.0,5.17536015]
[1693948144175,0.0197,25754.0,25753.0,5.17704015]
[1693948144402,0.0197,25754.0,25753.0,5.17668015]
[1693948144605,0.0197,25754.0,25753.0,5.17680015]
[1693948144807,0.0197,25754.0,25753.0,5.17608015]
[1693948145130,0.0197,25754.0,25753.0,5.17620015]
[1693948145369,0.0197,25754.0,25753.0,5.17740015]
[1693948145556,0.0197,25754.0,25753.0,5.37106015]
[1693948145781,0.0197,25754.0,25753.0,5.37082015]
[1693948146012,0.0197,25754.0,25753.0,5.37454015]
[1693948146225,0.0197,25754.0,25753.0,5.37442015]
[1693948146429,0.0197,25754.0,25753.0,5.37454015]
[1693948146666,0.0197,25754.0,25753.0,5.37370015]
[1693948146869,0.0197,25754.0,25753.0,5.37430015]
[1693948147090,0.0197,25754.0,25753.0,5.37382015]
[1693948147278,0.0197,25754.0,25753.0,5.37298015]
[1693948147695,0.0197,25754.0,25753.0,5.37262015]
[1693948147875,0.0197,25754.0,25753.0,5.37214015]
[1693948148082,0.0197,25754.0,25753.0,5.37130015]
[1693948148288,0.0197,25754.0,25753.0,5.37118015]
[1693948148491,0.0197,25754.0,25753.0,5.37070015]
[1693948148808,0.0197,25754.0,25753.0,5.36986015]
[1693948148946,0.0197,25754.0,25753.0,5.36974015]
[1693948149167,0.0197,25754.0,25753.0,5.36950015]
[1693948149369,0.0197,25754.0,25753.0,5.37082015]
[1693948149578,0.0197,25754.0,25753.0,5.36950015]
[1693948149784,0.0197,25754.0,25753.0,5.36830015]
[1693948149986,0.0197,25754.0,25753.0,5.36818015]
[1693948150185,0.0197,25754.0,25753.0,5.36866015]
[1693948150381,0.0197,25754.0,25753.0,5.36902015]
[1693948150589,0.0197,25754.0,25753.0,5.36878015]
[1693948150830,0.0197,25754.0,25753.0,5.36734015]
[1693948151016,0.0197,25754.0,25753.0,5.36674015]
[1693948151213,0.0197,25754.0,25753.0,5.36662015]
[1693948151412,0.0197,25754.0,25753.0,5.36650015]
[1693948151618,0.0197,25754.0,25753.0,5.37886015]
[1693948151818,0.0197,25754.0,25753.0,5.37778015]
[1693948152024,0.0197,25754.0,25753.0,5.37430015]
[1693948152483,0.0197,25754.0,25753.0,5.36230326]
[1693948152802,0.0197,25754.0,25753.0,5.36050326]
[1693948153033,0.0197,25754.0,25753.0,5.36230326]
[1693948153251,0.1547,25756.0,25754.0,0.01004602]
[1693948153462,0.00099809,25757.0,25755.0,2.56097727]
[1693948153676,0.00099809,25757.0,25756.0,0.1025]
[1693948153876,0.081,25758.0,25756.0,2.20335127]
[1693948154085,0.081,25758.0,25757.0,0.38664527]
[1693948154289,0.081,25758.0,25757.0,2.08338827]
[1693948154470,0.081,25758.0,25757.0,2.78434827]
[1693948154674,0.081,25758.0,25757.0,2.78440827]
[1693948154903,0.081,25758.0,25757.0,2.94069727]
[1693948155111,0.081,25758.0,25757.0,2.94039727]
[1693948155314,0.081,25758.0,25757.0,2.94033727]
[1693948155445,0.081,25758.0,25757.0,2.94015727]
[1693948155652,0.081,25758.0,25757.0,2.96521727]
[1693948155850,0.081,25758.0,25757.0,2.96503727]
[1693948156198,0.081,25758.0,25757.0,2.99015727]
[1693948156433,0.081,25758.0,25757.0,2.99057727]
[1693948156899,0.081,25758.0,25757.0,1.90367527]
[1693948157113,0.29527919,25758.0,25757.0,1.68018627]
[1693948157321,0.29147919,25758.0,25757.0,1.68018627]
[1693948157729,0.29147919,25758.0,25757.0,1.68050646]
[1693948158133,0.29147919,25758.0,25757.0,1.29386119]
[1693948158568,0.29147919,25758.0,25757.0,0.75032019]
[1693948160554,0.29147919,25758.0,25757.0,1.29386119]
[1693948162496,0.29147919,25758.0,25757.0,1.83740219]
[1693948172244,0.0772,25758.0,25757.0,1.83740219]
[1693948172562,0.0772,25758.0,25757.0,2.38094319]
[1693948173173,0.06,25758.0,25757.0,2.38094319]
[1693948173665,0.15281623,25758.0,25757.0,2.38094319]
[1693948174891,0.11281623,25758.0,25757.0,2.38094319]
[1693948175097,0.31118047,25758.0,25757.0,2.38094319]
[1693948175678,0.43040482,25758.0,25757.0,2.38094319]
[1693948175884,0.45040482,25758.0,25757.0,2.38094319]
[1693948176288,0.25204058,25758.0,25757.0,2.38094319]
[1693948178305,0.15922435,25758.0,25757.0,2.38094319]
[1693948178514,0.15922435,25758.0,25757.0,2.76758846]
[1693948178688,0.15922435,25758.0,25757.0,2.84636846]
[1693948178888,0.25243017,25758.0,25757.0,2.84162846]
[1693948179113,0.25243017,25758.0,25757.0,2.84132846]
[1693948179275,0.25243017,25758.0,25757.0,2.83952846]
[1693948179500,0.25243017,25758.0,25757.0,2.83802846]
[1693948179704,0.25243017,25758.0,25757.0,2.83574846]
[1693948179904,0.23243017,25758.0,25757.0,2.83556846]
[1693948180099,0.25243017,25758.0,25757.0,2.83454846]
[1693948180300,0.25243017,25758.0,25757.0,2.83436846]